Workbook

Sheet 10-Tray
A1: Rigorous Solution Method
A3: R = | B3: 2.0 | D3: Specified or found by iteration | H3: Feed
A4: P (mm Hg) = | B4: 760 | D4: Calculations | H4: T (oC) | I4: 92.0
A6: Stage | B6: F (mol) | C6: z (mol B/mol) | D6: Fz (mol B) | E6: D (mol) | F6: xD (mol B/mol) | G6: L (mol) | H6: x (mol B/mol) | I6: V (mol) | J6: y (mol B/mol) | K6: T (oC) | L6: KB | M6: KT | N6: BP/DP | O6: HBL (kJ/mol) | P6: HTL (kJ/mol) | Q6: HBV (kJ/mol) | R6: HTV (kJ/mol) | S6: HF (kJ) | T6: HLi (kJ) | U6: Hvi (kJ) | V6: Q (kJ)
A7: Total Cond | E7: 50 | F7: 0.950 | G7: =+E7*B3 -> 100.0 | H7: =+F7 -> 0.950 | K7: 81.1 | L7: =10^($B$24-$C$24/($D$24+K7))/$B$4 -> 1.032 | M7: =10^($B$25-$C$25/($D$25+K7))/$B$4 -> 0.398 | N7: =+H7*L7+(1-H7)*M7 -> 1.0000 | O7: =+$I$24*(K7-80.1)+$J$24*(K7^2-80.1^2)/2 -> 0.15 | P7: =+$I$25*(K7-110.6)+$J$25*(K7^2-110.6^2) -> -6.22 | T7: =+G7*(H7*O7+(1-H7)*P7) -> -17.1 | U7: --- | V7: =+T7+E7*(F7*O7+(1-F7)*P7)-U8 -> -4668.9
A8: 1 | D8: =+B8*C8 -> 0 | G8: =+I9+G7+B8-I8 -> 98.5 | H8: =+J8/L8 -> 0.880 | I8: =+E7+G7 -> 150.0 | J8: =+F7 -> 0.950 | K8: 82.6 | L8: 1.079 | M8: 0.419 | N8: =+J8/L8+(1-J8)/M8 -> 1.0000 | O8: =+$I$24*(K8-80.1)+$J$24*(K8^2-80.1^2)/2 -> 0.36 | P8: =+$I$25*(K8-110.6)+$J$25*(K8^2-110.6^2) -> -5.92 | Q8: =+$L$24+$E$24*(K8-80.1)+$F$24*(K8^2-80.1^2)/2+$G$24*(K8^3-80.1^3)/3+$H$24*(K8^4-80.1^4)/4 -> 31.01 | R8: =+$L$25+$E$25*(K8-110.6)+$F$25*(K8^2-110.6^2)/2+$G$25*(K8^3-110.6^3)/3+$H$25*(K8^4-110.6^4)/4 -> 29.88 | S8: =+B8*(C8*$R$24+(1-C8)*$R$25) -> 0.00 | T8: =+G8*(H8*O8+(1-H8)*P8) -> -38.4 | U8: =+I8*(J8*Q8+(1-J8)*R8) -> 4643.3 | V8: =+T8+U8-T7-U9-S8 -> 0.00000
A9: 2 | D9: =+B9*C9 -> 0 | G9: =+I10+G8+B9-I9 -> 96.8 | H9: 0.786 | I9: 148.5 | J9: =+(I8*J8+G8*H8-B8*C8-G7*H7)/I9 -> 0.904 | K9: 84.7 | L9: 1.150 | M9: 0.450 | N9: 1.0000 | O9: 0.67 | P9: -5.49 | Q9: 31.22 | R9: 30.14 | S9: =+B9*(C9*$R$24+(1-C9)*$R$25) -> 0.00 | T9: -62.7 | U9: =+I9*(J9*Q9+(1-J9)*R9) -> 4622.0 | V9: =+T9+U9-T8-U10-S9 -> 0.00000
A10: 3 | D10: =+B10*C10 -> 0 | G10: =+I11+G9+B10-I10 -> 95.1 | H10: 0.677 | I10: 146.8 | J10: 0.842 | K10: 87.3 | L10: 1.243 | M10: 0.491 | N10: 1.0000 | O10: 1.06 | P10: -4.96 | Q10: 31.49 | R10: 30.46 | S10: =+B10*(C10*$R$24+(1-C10)*$R$25) -> 0.00 | T10: -84.0 | U10: 4597.7 | V10: 0.00000
A11: 4 | D11: 0 | G11: 93.8 | H11: 0.573 | I11: 145.1 | J11: =+(I10*J10+G10*H10-B10*C10-G9*H9)/I11 -> 0.771 | K11: 90.1 | L11: 1.345 | M11: 0.536 | N11: 1.0000 | O11: 1.46 | P11: -4.39 | Q11: 31.76 | R11: 30.81 | S11: 0.00 | T11: -97.4 | U11: 4576.4 | V11: -0.00000
A12: 5 | B12: 100 | C12: 0.5 | D12: =+B12*C12 -> 50 | G12: 191.9 | H12: 0.489 | I12: 143.8 | J12: 0.704 | K12: 92.4 | L12: 1.440 | M12: 0.579 | N12: 1.0000 | O12: 1.81 | P12: -3.90 | Q12: 32.01 | R12: 31.11 | S12: =+Flash!G17 -> -81.8 | T12: -212.4 | U12: 4563.0 | V12: 0.00000
A13: 6 | D13: 0 | G13: 190.9 | H13: 0.422 | I13: 141.9 | J13: =+(I12*J12+G12*H12-B12*C12-G11*H11)/I13 -> 0.644 | K13: 94.5 | L13: 1.525 | M13: 0.617 | N13: 1.0000 | O13: 2.11 | P13: -3.48 | Q13: 32.21 | R13: 31.37 | S13: 0.00 | T13: -213.4 | U13: 4529.8 | V13: -0.00000
A14: 7 | D14: 0 | G14: 189.9 | H14: 0.337 | I14: 140.9 | J14: 0.554 | K14: 97.2 | L14: 1.646 | M14: 0.672 | N14: 1.0000 | O14: 2.52 | P14: -2.89 | Q14: 32.50 | R14: 31.72 | S14: 0.00 | T14: -203.5 | U14: 4528.8 | V14: -0.00000
A15: 8 | D15: =+B15*C15 -> 0 | G15: =+I16+G14+B15-I15 -> 189.4 | H15: 0.244 | I15: 139.9 | J15: 0.439 | K15: 100.4 | L15: 1.798 | M15: 0.742 | N15: 1.0000 | O15: 3.00 | P15: -2.20 | Q15: 32.84 | R15: 32.14 | S15: =+B15*(C15*$R$24+(1-C15)*$R$25) -> 0.00 | T15: -176.6 | U15: 4538.7 | V15: -0.00000
A16: 9 | D16: 0 | G16: 189.5 | H16: 0.160 | I16: 139.4 | J16: =+(I15*J15+G15*H15-B15*C15-G14*H14)/I16 -> 0.314 | K16: 103.7 | L16: 1.959 | M16: 0.817 | N16: 1.0000 | O16: 3.49 | P16: -1.51 | Q16: 33.17 | R16: 32.56 | S16: 0.00 | T16: -135.1 | U16: 4565.6 | V16: -0.00000
A17: 10 | D17: 0 | G17: 190.0 | H17: 0.095 | I17: 139.5 | J17: 0.200 | K17: 106.4 | L17: 2.103 | M17: 0.884 | N17: 1.0000 | O17: 3.89 | P17: -0.93 | Q17: 33.46 | R17: 32.91 | S17: 0.00 | T17: -89.8 | U17: 4607.1 | V17: 0.00000
A18: Reboiler | G18: 50.0 | H18: 0.050 | I18: 140.0 | J18: 0.111 | K18: 108.3 | L18: 2.212 | M18: 0.936 | N18: 1.0000 | O18: 4.19 | P18: -0.50 | Q18: 33.67 | R18: 33.17 | S18: 0.00 | T18: -13.4 | U18: 4652.4 | V18: =+T18+U18-T17 -> 4728.9
A19: Sums | B19: =+SUM(B8:B17) -> 100 | C19: =+SUM(C8:C17) -> 0.5 | G19: XR by Overall Mol Bal | H19: =+(SUM(D7:D17)-E7*F7)/G18 -> 0.050
G20: D = | H20: =+H18-H19 -> -0.000
A22: Antoine Constants | E22: Vapor Cp (kJ/mol oC) | I22: Liquid Cp (kJ/mol oC) | K22: TB (oC) | L22: Hvap (kJ/mol) | M22: MW | N22: r (kg/m3) | O22: V (L/mol) | Q22: Instructions: In a standard experiment, specify R, F, z, TF, the feed stage, and either D or xD.
B23: A | C23: B | D23: C | E23: a | F23: b | G23: c | H23: d | I23: a | J23: b | Q23: Go to "Flash" page to calculate the feed enthalpy. Follow instructions on that page.
A24: Benzene | B24: 6.89272 | C24: 1203.531 | D24: 219.888 | E24: 7.41E-02 | F24: 3.30E-04 | G24: -2.52E-07 | H24: 7.76E-11 | I24: 1.27E-01 | J24: 2.34E-04 | K24: 80.10 | L24: 30.765 | M24: 78.11 | N24: 879 | O24: =+M24/N24 -> 0.0889 | Q24: Come back to this page and run Solver. It will find V, T, and D or xD values by iteration.
A25: Toluene | B25: 6.95805 | C25: 1346.773 | D25: 219.693 | E25: 9.42E-02 | F25: 3.80E-04 | G25: -2.79E-07 | H25: 8.03E-11 | I25: 1.49E-01 | J25: 3.24E-04 | K25: 110.62 | L25: 33.470 | M25: 92.13 | N25: 866 | O25: =+M25/N25 -> 0.1064
A27: Operating Lines | E27: McCabe-Thiele | H27: Profiles
A28: x | B28: y (TOL) | C28: y (BOL) | E28: x | F28: y | H28: Stage | I28: L | J28: V | K28: Stage | L28: T | M28: Stage
A29: 0 | B29: =+($B$3/($B$3+1))*A29+(1/(1+$B$3))*$F$7 -> 0.3166 | C29: =+($G$17/$I$18)*A29-($G$18/$I$18)*$H$18 -> -0.0179 | E29: =+H7 -> 0.9499 | F29: =+J8 -> 0.9499 | H29: 1 | I29: =+G7 -> 100 | K29: 1 | L29: =+K7 -> 81.1 | M29: 1
A30: 0.1 | B30: =+($B$3/($B$3+1))*A30+(1/(1+$B$3))*$F$7 -> 0.3833 | C30: =+($G$17/$I$18)*A30-($G$18/$I$18)*$H$18 -> 0.1178 | E30: =+H8 -> 0.8803 | F30: =+J8 -> 0.9499 | H30: 2 | I30: 99 | J30: =+I8 -> 150 | K30: 2 | L30: 82.6 | M30: 2 | O30: Results for R = 2, D = 50, F = 100, z = 0.5, TF = 92, feed to tray 5 (stage 6)
A31: 0.2 | B31: 0.4500 | C31: 0.2535 | E31: =+H8 -> 0.8803 | F31: =+J9 -> 0.9037 | H31: 3 | I31: 97 | J31: 149 | K31: 3 | L31: 84.7 | M31: 3 | P31: ChemCAD | V31: Lewis
A32: 0.3 | B32: 0.5166 | C32: 0.3892 | E32: =+H9 -> 0.7859 | F32: =+J9 -> 0.9037 | H32: 4 | I32: 95 | J32: 147 | K32: 4 | L32: 87.3 | M32: 4 | O32: Stage | P32: Temp | Q32: Duties | R32: V | S32: L | T32: y | U32: x | V32: L | W32: x | X32: V | Y32: y | Z32: T
A33: 0.4 | B33: 0.5833 | C33: 0.5249 | E33: =+H9 -> 0.7859 | F33: =+J10 -> 0.8417 | H33: 5 | I33: 94 | J33: 145 | K33: 5 | L33: 90.1 | M33: 5 | P33: (oC) | Q33: (kJ) | R33: (mol) | S33: (mol) | T33: (mol B/mol) | U33: (mol B/mol) | V33: (mol) | W33: (mol B/mol) | X33: (mol) | Y33: (mol B/mol) | Z33: (oC)
A34: 0.5 | B34: 0.6500 | C34: 0.6606 | E34: =+H10 -> 0.6774 | F34: =+J10 -> 0.8417 | H34: 6 | I34: 192 | J34: 144 | K34: 6 | L34: 92.4 | M34: 6 | O34: 1 | P34: 81.1 | Q34: -4679 | S34: 100.0 | U34: 0.951 | V34: 100 | W34: 0.954 | Z34: 81.0
A35: 0.6 | B35: 0.7166 | C35: 0.7963 | E35: =+H10 -> 0.6774 | F35: =+J11 -> 0.7713 | H35: 7 | I35: 191 | J35: 142 | K35: 7 | L35: 94.5 | M35: 7 | O35: 2 | P35: 82.6 | R35: 150.0 | S35: 98.7 | T35: 0.951 | U35: 0.882 | V35: 100 | W35: 0.890 | X35: 150 | Y35: 0.954 | Z35: 82.4
A36: 0.7 | B36: 0.7833 | C36: 0.9320 | E36: =+H11 -> 0.5733 | F36: =+J11 -> 0.7713 | H36: 8 | I36: 190 | J36: 141 | K36: 8 | L36: 97.2 | M36: 8 | O36: 3 | P36: 84.7 | R36: 148.7 | S36: 97.1 | T36: 0.905 | U36: 0.788 | V36: 100 | W36: 0.801 | X36: 150 | Y36: 0.911 | Z36: 84.4
A37: 0.8 | B37: 0.8500 | C37: 1.0677 | E37: =+H11 -> 0.5733 | F37: =+J12 -> 0.7043 | H37: 9 | I37: 189 | J37: 140 | K37: 9 | L37: 100.4 | M37: 9 | O37: 4 | P37: 87.3 | R37: 147.1 | S37: 95.5 | T37: 0.843 | U37: 0.680 | V37: 100 | W37: 0.694 | X37: 150 | Y37: 0.852 | Z37: 86.9
A38: 0.9 | B38: 0.9166 | C38: 1.2034 | E38: =+H12 -> 0.4890 | F38: =+J12 -> 0.7043 | H38: 10 | I38: 190 | J38: 139 | K38: 10 | L38: 103.7 | M38: 10 | O38: 5 | P38: 90 | R38: 145.5 | S38: 94.2 | T38: 0.773 | U38: 0.575 | V38: 100 | W38: 0.586 | X38: 150 | Y38: 0.781 | Z38: 89.7
A39: 1 | B39: 0.9833 | C39: 1.3391 | E39: =+H12 -> 0.4890 | F39: =+J13 -> 0.6436 | H39: 11 | I39: 190 | J39: 140 | K39: 11 | L39: 106.4 | M39: 11 | O39: 6 | P39: 92.5 | R39: 144.2 | S39: 193.3 | T39: 0.705 | U39: 0.490 | V39: 200 | W39: 0.495 | X39: 150 | Y39: 0.709 | Z39: 92.3
E40: =+H13 -> 0.4222 | F40: =+J13 -> 0.6436 | H40: 12 | I40: 50 | J40: 140 | K40: 12 | L40: 108.3 | M40: 12 | O40: 7 | P40: 94.5 | R40: 143.3 | S40: 192.1 | T40: 0.643 | U40: 0.422 | V40: 200 | W40: 0.423 | X40: 150 | Y40: 0.644 | Z40: 94.4
A41: Feed Line | B41: x | C41: y | E41: =+H13 -> 0.4222 | F41: =+J14 -> 0.5542 | O41: 8 | P41: 97.3 | R41: 142.1 | S41: 190.9 | T41: 0.553 | U41: 0.335 | V41: 200 | W41: 0.332 | X41: 150 | Y41: 0.548 | Z41: 97.4
B42: =+SUM(C8:C17) -> 0.5 | C42: 0 | E42: =+H14 -> 0.3367 | F42: =+J14 -> 0.5542 | O42: 9 | P42: 100.6 | R42: 140.9 | S42: 190.1 | T42: 0.437 | U42: 0.242 | V42: 200 | W42: 0.235 | X42: 150 | Y42: 0.427 | Z42: 100.8
B43: =+SUM(C8:C17) -> 0.5 | C43: 1 | E43: =+H14 -> 0.3367 | F43: =+J15 -> 0.4392 | O43: 10 | P43: 103.8 | R43: 140.1 | S43: 189.7 | T43: 0.311 | U43: 0.158 | V43: 200 | W43: 0.151 | X43: 150 | Y43: 0.298 | Z43: 104.0
E44: =+H15 -> 0.2442 | F44: =+J15 -> 0.4392 | O44: 11 | P44: 106.5 | R44: 139.7 | S44: 189.7 | T44: 0.197 | U44: 0.094 | V44: 200 | W44: 0.088 | X44: 150 | Y44: 0.186 | Z44: 106.7
A45: 45o Line | B45: x | C45: y | E45: =+H15 -> 0.2442 | F45: =+J16 -> 0.3138 | O45: 12 | P45: 108.4 | Q45: 4744 | R45: 139.7 | S45: 50.0 | T45: 0.109 | U45: 0.049 | V45: 50 | W45: 0.046 | X45: 150 | Y45: 0.102 | Z45: 108.5
B46: 0 | C46: 0 | E46: =+H16 -> 0.1602 | F46: =+J16 -> 0.3138
B47: 1 | C47: 1 | E47: =+H16 -> 0.1602 | F47: =+J17 -> 0.1996
E48: =+H17 -> 0.0949 | F48: =+J17 -> 0.1996
E49: =+H17 -> 0.0949 | F49: =+J18 -> 0.1109
E50: =+H18 -> 0.0501 | F50: =+J18 -> 0.1109
E51: =+H18 -> 0.0501 | F51: =+H19 -> 0.0501

Sheet Flash
A1: Feed Flash | B1: Specified or found by iteration | E1: Copied to or from Rigorous page
B2: Calculations | E2: Heading
A4: Data from Rigorous Page
A5: (Make any changes there!) | D5: Calculation of TDP and TBP based on value of z.
A6: F (mol) = | B6: =+'10-Tray'!B19 -> 100 | D6: KB | E6: =10^(B26-C26/(D26+$G$6))/$B$8 -> 1.718 | F6: TDP = | G6: 98.77
A7: z (mol B/mol) = | B7: =+'10-Tray'!C19 -> 0.5 | D7: KT | E7: =10^(B27-C27/(D27+$G$6))/$B$8 -> 0.705 | G7: 0.00 | H7: DP = | I7: =+B7/E6+(1-B7)/E7-1 -> 0.00015
A8: P (mm Hg) = | B8: =+'10-Tray'!B4 -> 760 | D8: KB | E8: =10^(B26-C26/(D26+$G$8))/$B$8 -> 1.428 | F8: TBP = | G8: 92.15
A9: T (oC) = | B9: =+'10-Tray'!I4 -> 92.0 | D9: KT | E9: =10^(B27-C27/(D27+$G$8))/$B$8 -> 0.573 | G9: -37778706683311300.00 | H9: BP = | I9: =+B7*E8+(1-B7)*E9-1 -> 0.00089
K10: Explanation of Logic
A11: Flash Calculation | F11: Feed Enthalpy | I11: superheated? | J11: =IF(B9>G6,1,0) -> 0 | K11: If TF > TDP, then 1, else 0
A12: KB = | B12: =10^(B26-C26/(D26+$B$9))/$B$8 -> 1.4225 | C12: KT = | D12: =10^(B27-C27/(D27+$B$9))/$B$8 -> 0.5707 | F12: Ref: Liquids at normal boiling point | I12: subcooled? | J12: =+IF(B9<G8,1,0) -> 1 | K12: If TF < TBP, then 1, else 0
A13: x (mol B/mol) = | B13: 0.504 | C13: BP = | D13: =+B13*B12+(1-B13)*D12-1 -> 0.000000 | F13: HBL (kJ/mol) = | G13: =+I26*($B$9-$K$26)+J26*($B$9^2-$K$26^2)/2 -> 1.74 | I13: mixed? | J13: =IF(AND(B9>=G8, B9<=G6),1,0) -> 0 | K13: If TF >= TBP and TF <= TDP, then 1, else 0
A14: y (mol B/mol) = | B14: 0.500 | C14: DP = | D14: =+B14/B12+(1-B14)/D12-1 -> 0.227619 | F14: HTL (kJ/mol) = | G14: =+I27*($B$9-$K$27)+J27*($B$9^2-$K$27^2)/2 -> -3.38
A15: L (mol) = | B15: 0.0 | C15: Total MB = | D15: =+B6-B15-B16 -> 0.000000 | F15: HBV (kJ/mol) = | G15: =+L26+E26*($B$9-K26)+F26*($B$9^2-K26^2)/2+G26*($B$9^3-K26^3)/3+H26*($B$9^4-K26^4)/4 -> 31.96 | I15: Values used to calculate | K15: Explanation of Logic
A16: V (mol) = | B16: 100.0 | C16: B MB = | D16: =+B6*B7-B15*B13-B16*B14 -> 0.000000 | F16: HTV (kJ/mol) = | G16: =+L27+E27*($B$9-K27)+F27*($B$9^2-K27^2)/2+G27*($B$9^3-K27^3)/3+H27*($B$9^4-K27^4)/4 -> 31.05 | I16: the feed enthalpy | K16: Subcooled | L16: Mixed | M16: Superheated
F17: HF (kJ) = | G17: =+J17*(J18*G15+(1-J18)*G16)+J19*(J20*G13+(1-J20)*G14) -> -81.8 | I17: V (mol) = | J17: =IF(J11=1,B6,IF(J12=1,0,B16)) -> 0.0 | K17: 0 | L17: B17 | M17: B7
A18: Instructions: Use Goal Seek twice to calculate TDP and TBP. | I18: y (mol B/mol) = | J18: =IF(J11=1,B7,IF(J12=1,0,B14)) -> 0.000 | K18: 0 | L18: B18 | M18: B8
A19: Run Solver to calculate the feed enthalpy. It is automatically input to | I19: L (mol) = | J19: =IF(J11=1,0,IF(J12=1,B6,B15)) -> 100.0 | K19: B7 | L19: B16 | M19: 0
A20: Rigorous page. | I20: x (mol B/mol = | J20: =IF(J11=1,0,IF(J12=1,B7,B13)) -> 0.500 | K20: B8 | L20: B14 | M20: 0
A21: If the feed is subcooled or superheated, Solver will not find an aswer.
A22: However, the feed enthalpy will be correct.
A24: Antoine Constants | E24: Vapor Cp (kJ/mol oC) | I24: Liquid Cp (kJ/mol oC) | K24: TB (oC) | L24: Hvap (kJ/mol) | M24: MW | N24: r (kg/m3) | O24: V (L/mol)
B25: A | C25: B | D25: C | E25: a | F25: b | G25: c | H25: d | I25: a | J25: b
A26: Benzene | B26: 6.89272 | C26: 1203.531 | D26: 219.888 | E26: 7.41E-02 | F26: 3.30E-04 | G26: -2.52E-07 | H26: 7.76E-11 | I26: 1.27E-01 | J26: 2.34E-04 | K26: 80.10 | L26: 30.765 | M26: 78.11 | N26: 879 | O26: =+M26/N26 -> 0.0889
A27: Toluene | B27: 6.95805 | C27: 1346.773 | D27: 219.693 | E27: 9.42E-02 | F27: 3.80E-04 | G27: -2.79E-07 | H27: 8.03E-11 | I27: 1.49E-01 | J27: 3.24E-04 | K27: 110.62 | L27: 33.470 | M27: 92.13 | N27: 866 | O27: =+M27/N27 -> 0.1064

Sheet DIY
A1: Rigorous Solution Method
A3: R = | B3: 2.0 | D3: Specified or found by iteration | H3: Feed
A4: P (mm Hg) = | B4: 760 | D4: Calculations | H4: T (oC) | I4: 92.0
A6: Stage | B6: F (mol) | C6: z (mol B/mol) | D6: Fz (mol B) | E6: D (mol) | F6: xD (mol B/mol) | G6: L (mol) | H6: x (mol B/mol) | I6: V (mol) | J6: y (mol B/mol) | K6: T (oC) | L6: KB | M6: KT | N6: BP/DP | O6: HBL (kJ/mol) | P6: HTL (kJ/mol) | Q6: HBV (kJ/mol) | R6: HTV (kJ/mol) | S6: HF (kJ) | T6: HLi (kJ) | U6: Hvi (kJ) | V6: Q (kJ)
A7: Total Cond
A8: 1
A9: 2
A10: 3
A11: 4
A12: 5
A13: 6
A14: 7
A15: 8
A16: 9
A17: 10
A18: Reboiler
A19: Sums | G19: XR by Overall Mol Bal
G20: D =
A22: Antoine Constants | E22: Vapor Cp (kJ/mol oC) | I22: Liquid Cp (kJ/mol oC) | K22: TB (oC) | L22: Hvap (kJ/mol) | M22: MW | N22: r (kg/m3) | O22: V (L/mol) | Q22: Instructions: In a standard experiment, specify R, F, z, TF, the feed stage, and either D or xD.
B23: A | C23: B | D23: C | E23: a | F23: b | G23: c | H23: d | I23: a | J23: b | Q23: Go to "Flash" page to calculate the feed enthalpy. Follow instructions on that page.
A24: Benzene | B24: 6.89272 | C24: 1203.531 | D24: 219.888 | E24: 7.41E-02 | F24: 3.30E-04 | G24: -2.52E-07 | H24: 7.76E-11 | I24: 1.27E-01 | J24: 2.34E-04 | K24: 80.10 | L24: 30.765 | M24: 78.11 | N24: 879 | O24: =+M24/N24 -> 0.0889 | Q24: Come back to this page and run Solver. It will find V, T, and D or xD values by iteration.
A25: Toluene | B25: 6.95805 | C25: 1346.773 | D25: 219.693 | E25: 9.42E-02 | F25: 3.80E-04 | G25: -2.79E-07 | H25: 8.03E-11 | I25: 1.49E-01 | J25: 3.24E-04 | K25: 110.62 | L25: 33.470 | M25: 92.13 | N25: 866 | O25: =+M25/N25 -> 0.1064

Sheet VLE
A1: Benzene-Toluene VLE
E2: P (mm Hg) = | F2: 760 | H2: Antoine Constants
A3: x | B3: y | C3: T | D3: pB | E3: pT | F3: BP | I3: A | J3: B | K3: C
A4: (mol B/mol) | B4: (mol B/mol) | C4: (oC) | D4: (mm Hg) | E4: (mm Hg) | F4: (mm Hg) | H4: Benzene | I4: 6.89272 | J4: 1203.531 | K4: 219.888
A5: 0.00 | B5: =+A5*D5/760 -> 0.000 | C5: 110.6 | D5: =10^($I$4-$J$4/(C5+$K$4)) -> 1784 | E5: =10^($I$5-$J$5/($K$5+C5)) -> 760 | F5: =$F$2-A5*D5-(1-A5)*E5 -> 0.00006 | H5: Toluene | I5: 6.95805 | J5: 1346.773 | K5: 219.693
A6: 0.01 | B6: 0.023 | C6: 110.2 | D6: =10^($I$4-$J$4/(C6+$K$4)) -> 1762 | E6: =10^($I$5-$J$5/($K$5+C6)) -> 750 | F6: =$F$2-A6*D6-(1-A6)*E6 -> 0.00000
A7: 0.02 | B7: 0.046 | C7: 109.7 | D7: =10^($I$4-$J$4/(C7+$K$4)) -> 1742 | E7: =10^($I$5-$J$5/($K$5+C7)) -> 740 | F7: =$F$2-A7*D7-(1-A7)*E7 -> 0.00000 | H7: Instructions: | I7: 1) Select the pressure. Most examples are for 1 atm = 760 mm Hg.
A8: 0.03 | B8: 0.068 | C8: 109.2 | D8: 1721 | E8: 730 | F8: 0.00000 | I8: 2) Run Solver to make the BP criteria equal to zero. The cell contains
A9: 0.04 | B9: 0.090 | C9: 108.8 | D9: 1701 | E9: 721 | F9: 0.00000 | I9: P - pB xB - pT (1-xB).
A10: 0.05 | B10: 0.111 | C10: 108.3 | D10: 1682 | E10: 711 | F10: 0.00000 | I10: 3) The following are set and don't need to be changed:
A11: 0.06 | B11: 0.131 | C11: 107.9 | D11: 1662 | E11: 702 | F11: 0.00000 | I11: x is set from 0 to 1 by 0.01.
A12: 0.07 | B12: 0.151 | C12: 107.4 | D12: 1644 | E12: 693 | F12: 0.00000 | I12: y = pB xB/P
A13: 0.08 | B13: 0.171 | C13: 107.0 | D13: 1625 | E13: 685 | F13: 0.00000 | I13: T is found by iteration of BP
A14: 0.09 | B14: 0.190 | C14: 106.6 | D14: 1607 | E14: 676 | F14: 0.00000 | I14: pB and pT are the partial pressures at T using Antoine's Eq.
A15: 0.10 | B15: 0.209 | C15: 106.1 | D15: 1589 | E15: 668 | F15: 0.00000 | I15: 4) If you change pressure, you will need to adjust T axis on TXY VLE.
A16: 0.11 | B16: 0.227 | C16: 105.7 | D16: 1572 | E16: 660 | F16: 0.00000
A17: 0.12 | B17: 0.245 | C17: 105.3 | D17: 1555 | E17: 652 | F17: 0.00000
A18: 0.13 | B18: 0.263 | C18: 104.9 | D18: 1538 | E18: 644 | F18: 0.00000
A19: 0.14 | B19: 0.280 | C19: 104.5 | D19: 1521 | E19: 636 | F19: 0.00000
A20: 0.15 | B20: 0.297 | C20: 104.1 | D20: 1505 | E20: 628 | F20: 0.00000
A21: 0.16 | B21: 0.314 | C21: 103.7 | D21: 1489 | E21: 621 | F21: 0.00000
A22: 0.17 | B22: 0.330 | C22: 103.3 | D22: 1474 | E22: 614 | F22: 0.00000
A23: 0.18 | B23: 0.345 | C23: 102.9 | D23: 1459 | E23: 607 | F23: -0.00000
A24: 0.19 | B24: 0.361 | C24: 102.5 | D24: 1444 | E24: 600 | F24: 0.00000
A25: 0.20 | B25: 0.376 | C25: 102.1 | D25: 1429 | E25: 593 | F25: 0.00000
A26: 0.21 | B26: 0.391 | C26: 101.7 | D26: 1414 | E26: 586 | F26: 0.00000
A27: 0.22 | B27: 0.405 | C27: 101.3 | D27: 1400 | E27: 579 | F27: 0.00000
A28: 0.23 | B28: 0.419 | C28: 101.0 | D28: 1386 | E28: 573 | F28: -0.00000
A29: 0.24 | B29: 0.433 | C29: 100.6 | D29: 1372 | E29: 567 | F29: 0.00000
A30: 0.25 | B30: 0.447 | C30: 100.2 | D30: 1359 | E30: 560 | F30: 0.00000
A31: 0.26 | B31: 0.460 | C31: 99.9 | D31: 1346 | E31: 554 | F31: 0.00000
A32: 0.27 | B32: 0.473 | C32: 99.5 | D32: 1333 | E32: 548 | F32: 0.00000
A33: 0.28 | B33: 0.486 | C33: 99.2 | D33: 1320 | E33: 542 | F33: 0.00000
A34: 0.29 | B34: 0.499 | C34: 98.8 | D34: 1307 | E34: 537 | F34: 0.00000
A35: 0.30 | B35: 0.511 | C35: 98.5 | D35: 1295 | E35: 531 | F35: 0.00000
A36: 0.31 | B36: 0.523 | C36: 98.1 | D36: 1283 | E36: 525 | F36: 0.00000
A37: 0.32 | B37: 0.535 | C37: 97.8 | D37: 1271 | E37: 520 | F37: 0.00000
A38: 0.33 | B38: 0.547 | C38: 97.4 | D38: 1259 | E38: 514 | F38: 0.00000
A39: 0.34 | B39: 0.558 | C39: 97.1 | D39: 1247 | E39: 509 | F39: 0.00000
A40: 0.35 | B40: 0.569 | C40: 96.8 | D40: 1236 | E40: 504 | F40: 0.00000
A41: 0.36 | B41: 0.580 | C41: 96.4 | D41: 1225 | E41: 499 | F41: 0.00000
A42: 0.37 | B42: 0.591 | C42: 96.1 | D42: 1213 | E42: 494 | F42: 0.00000
A43: 0.38 | B43: 0.601 | C43: 95.8 | D43: 1203 | E43: 489 | F43: 0.00000
A44: 0.39 | B44: 0.612 | C44: 95.5 | D44: 1192 | E44: 484 | F44: 0.00000
A45: 0.40 | B45: 0.622 | C45: 95.1 | D45: 1181 | E45: 479 | F45: 0.00000
A46: 0.41 | B46: 0.632 | C46: 94.8 | D46: 1171 | E46: 474 | F46: 0.00000
A47: 0.42 | B47: 0.642 | C47: 94.5 | D47: 1161 | E47: 470 | F47: 0.00000
A48: 0.43 | B48: 0.651 | C48: 94.2 | D48: 1151 | E48: 465 | F48: 0.00000
A49: 0.44 | B49: 0.661 | C49: 93.9 | D49: 1141 | E49: 461 | F49: 0.00000
A50: 0.45 | B50: 0.670 | C50: 93.6 | D50: 1131 | E50: 456 | F50: 0.00000
A51: 0.46 | B51: 0.679 | C51: 93.3 | D51: 1122 | E51: 452 | F51: 0.00000
A52: 0.47 | B52: 0.688 | C52: 93.0 | D52: 1112 | E52: 448 | F52: 0.00000
A53: 0.48 | B53: 0.697 | C53: 92.7 | D53: 1103 | E53: 444 | F53: 0.00000
A54: 0.49 | B54: 0.705 | C54: 92.4 | D54: 1094 | E54: 439 | F54: -0.00000
A55: 0.50 | B55: 0.714 | C55: 92.1 | D55: 1085 | E55: 435 | F55: 0.00000
A56: 0.51 | B56: 0.722 | C56: 91.8 | D56: 1076 | E56: 431 | F56: 0.00000
A57: 0.52 | B57: 0.730 | C57: 91.5 | D57: 1067 | E57: 427 | F57: 0.00000
A58: 0.53 | B58: 0.738 | C58: 91.3 | D58: 1058 | E58: 424 | F58: 0.00000
A59: 0.54 | B59: 0.746 | C59: 91.0 | D59: 1050 | E59: 420 | F59: 0.00000
A60: 0.55 | B60: 0.754 | C60: 90.7 | D60: 1041 | E60: 416 | F60: 0.00000
A61: 0.56 | B61: 0.761 | C61: 90.4 | D61: 1033 | E61: 412 | F61: 0.00000
A62: 0.57 | B62: 0.769 | C62: 90.1 | D62: 1025 | E62: 409 | F62: 0.00000
A63: 0.58 | B63: 0.776 | C63: 89.9 | D63: 1017 | E63: 405 | F63: -0.00000
A64: 0.59 | B64: 0.783 | C64: 89.6 | D64: 1009 | E64: 402 | F64: -0.00000
A65: 0.60 | B65: 0.791 | C65: 89.3 | D65: 1001 | E65: 398 | F65: 0.00000
A66: 0.61 | B66: 0.798 | C66: 89.1 | D66: 994 | E66: 395 | F66: 0.00000
A67: 0.62 | B67: 0.804 | C67: 88.8 | D67: 986 | E67: 391 | F67: -0.00000
A68: 0.63 | B68: 0.811 | C68: 88.5 | D68: 979 | E68: 388 | F68: -0.00000
A69: 0.64 | B69: =+A69*D69/760 -> 0.818 | C69: 88.3 | D69: 971 | E69: 385 | F69: 0.00000
A70: 0.65 | B70: 0.824 | C70: 88.0 | D70: 964 | E70: 381 | F70: 0.00000
A71: 0.66 | B71: 0.831 | C71: 87.8 | D71: =10^($I$4-$J$4/(C71+$K$4)) -> 957 | E71: =10^($I$5-$J$5/($K$5+C71)) -> 378 | F71: =$F$2-A71*D71-(1-A71)*E71 -> 0.00000
A72: 0.67 | B72: 0.837 | C72: 87.5 | D72: 950 | E72: 375 | F72: -0.00000
A73: 0.68 | B73: 0.843 | C73: 87.3 | D73: 943 | E73: 372 | F73: 0.00000
A74: 0.69 | B74: 0.850 | C74: 87.0 | D74: 936 | E74: 369 | F74: 0.00000
A75: 0.70 | B75: 0.856 | C75: 86.8 | D75: 929 | E75: 366 | F75: -0.00000
A76: 0.71 | B76: 0.862 | C76: 86.5 | D76: 922 | E76: 363 | F76: -0.00000
A77: 0.72 | B77: 0.867 | C77: 86.3 | D77: 916 | E77: 360 | F77: 0.00000
A78: 0.73 | B78: 0.873 | C78: 86.0 | D78: 909 | E78: 357 | F78: 0.00000
A79: 0.74 | B79: 0.879 | C79: 85.8 | D79: 903 | E79: 354 | F79: 0.00000
A80: 0.75 | B80: 0.884 | C80: 85.6 | D80: 896 | E80: 352 | F80: 0.00000
A81: 0.76 | B81: 0.890 | C81: 85.3 | D81: 890 | E81: 349 | F81: -0.00000
A82: 0.77 | B82: 0.895 | C82: 85.1 | D82: 884 | E82: 346 | F82: 0.00000
A83: 0.78 | B83: 0.901 | C83: 84.8 | D83: 878 | E83: 343 | F83: 0.00000
A84: 0.79 | B84: 0.906 | C84: 84.6 | D84: 871 | E84: 341 | F84: 0.00000
A85: 0.80 | B85: 0.911 | C85: 84.4 | D85: 865 | E85: 338 | F85: 0.00000
A86: 0.81 | B86: 0.916 | C86: 84.2 | D86: 860 | E86: 335 | F86: -0.00000
A87: 0.82 | B87: 0.921 | C87: 83.9 | D87: 854 | E87: 333 | F87: -0.00000
A88: 0.83 | B88: 0.926 | C88: 83.7 | D88: 848 | E88: 330 | F88: 0.00000
A89: 0.84 | B89: 0.931 | C89: 83.5 | D89: 842 | E89: 328 | F89: 0.00000
A90: 0.85 | B90: 0.936 | C90: 83.3 | D90: 837 | E90: 325 | F90: -0.00000
A91: 0.86 | B91: 0.940 | C91: 83.0 | D91: 831 | E91: 323 | F91: 0.00000
A92: 0.87 | B92: 0.945 | C92: 82.8 | D92: 826 | E92: 321 | F92: 0.00000
A93: 0.88 | B93: 0.950 | C93: 82.6 | D93: 820 | E93: 318 | F93: 0.00000
A94: 0.89 | B94: 0.954 | C94: 82.4 | D94: 815 | E94: 316 | F94: 0.00000
A95: 0.90 | B95: 0.959 | C95: 82.2 | D95: 810 | E95: 314 | F95: 0.00000
A96: 0.91 | B96: 0.963 | C96: 82.0 | D96: 804 | E96: 311 | F96: -0.00000
A97: 0.92 | B97: 0.967 | C97: 81.7 | D97: 799 | E97: 309 | F97: 0.00000
A98: 0.93 | B98: 0.972 | C98: 81.5 | D98: 794 | E98: 307 | F98: 0.00000
A99: 0.94 | B99: 0.976 | C99: 81.3 | D99: 789 | E99: 305 | F99: 0.00000
A100: 0.95 | B100: 0.980 | C100: 81.1 | D100: 784 | E100: 303 | F100: -0.00000
A101: 0.96 | B101: 0.984 | C101: 80.9 | D101: 779 | E101: 300 | F101: -0.00000
A102: 0.97 | B102: 0.988 | C102: 80.7 | D102: 774 | E102: 298 | F102: 0.00000
A103: 0.98 | B103: 0.992 | C103: 80.5 | D103: 769 | E103: 296 | F103: 0.00000
A104: 0.99 | B104: 0.996 | C104: 80.3 | D104: 765 | E104: 294 | F104: -0.00000
A105: 1.00 | B105: 1.000 | C105: 80.1 | D105: 760 | E105: 292 | F105: -0.00000

Sheet Txy

Sheet Lewis
A1: Lewis Method (Benzene-Toluene)
A3: R = | B3: 2.0 | D3: Specified or found by iteration
A4: P (mm Hg) = | B4: 760 | D4: Calculations
A6: Stage | B6: F (mol) | C6: z (mol B/mol) | D6: Fz (mol B) | E6: D (mol) | F6: xD (mol B/mol) | G6: L (mol) | H6: x (mol B/mol) | I6: V (mol) | J6: y (mol B/mol) | K6: T (oC) | L6: KB | M6: KT | N6: BP/DP
A7: Total Cond | E7: 50 | F7: 0.954 | G7: =+E7*B3 -> 100 | H7: =+F7 -> 0.954 | K7: 81.0 | L7: =10^($B$24-$C$24/($D$24+K7))/$B$4 -> 1.029 | M7: =10^($B$25-$C$25/($D$25+K7))/$B$4 -> 0.397 | N7: =+H7*L7+(1-H7)*M7 -> 1.0000
A8: 1 | D8: =+B8*C8 -> 0 | G8: =+I9+G7+B8-I8 -> 100 | H8: =+J8/L8 -> 0.890 | I8: =+E7+G7 -> 150 | J8: =+F7 -> 0.954 | K8: 82.4 | L8: 1.072 | M8: 0.416 | N8: =+J8/L8+(1-J8)/M8 -> 1.0000
A9: 2 | D9: =+B9*C9 -> 0 | G9: =+I10+G8+B9-I9 -> 100 | H9: 0.801 | I9: =+I8 -> 150 | J9: =+(I8*J8+G8*H8-B8*C8-G7*H7)/I9 -> 0.911 | K9: 84.4 | L9: 1.138 | M9: 0.445 | N9: 1.0000
A10: 3 | D10: 0 | G10: 100 | H10: 0.694 | I10: =+I9 -> 150 | J10: 0.852 | K10: 86.9 | L10: 1.228 | M10: 0.484 | N10: 1.0000
A11: 4 | D11: 0 | G11: 100 | H11: 0.586 | I11: 150 | J11: 0.781 | K11: 89.7 | L11: 1.332 | M11: 0.530 | N11: 1.0000
A12: 5 | B12: 100 | C12: 0.5 | D12: =+B12*C12 -> 50 | G12: 200 | H12: 0.495 | I12: 150 | J12: 0.709 | K12: 92.3 | L12: 1.434 | M12: 0.576 | N12: 1.0000
A13: 6 | D13: 0 | G13: 200 | H13: 0.423 | I13: 150 | J13: =+(I12*J12+G12*H12-B12*C12-G11*H11)/I13 -> 0.644 | K13: 94.4 | L13: 1.524 | M13: 0.616 | N13: 1.0000
A14: 7 | D14: 0 | G14: 200 | H14: 0.332 | I14: 150 | J14: 0.548 | K14: 97.4 | L14: 1.654 | M14: 0.676 | N14: 1.0000
A15: 8 | D15: =+B15*C15 -> 0 | G15: 200 | H15: 0.235 | I15: 150 | J15: 0.427 | K15: 100.8 | L15: 1.814 | M15: 0.749 | N15: 1.0000
A16: 9 | D16: 0 | G16: 200 | H16: 0.151 | I16: 150 | J16: =+(I15*J15+G15*H15-B15*C15-G14*H14)/I16 -> 0.298 | K16: 104.0 | L16: 1.979 | M16: 0.826 | N16: 1.0000
A17: 10 | D17: 0 | G17: 200 | H17: 0.088 | I17: 150 | J17: 0.186 | K17: 106.7 | L17: 2.120 | M17: 0.892 | N17: 1.0000
A18: Reboiler | G18: 50 | H18: 0.046 | I18: 150 | J18: 0.102 | K18: 108.5 | L18: 2.224 | M18: 0.941 | N18: 1.0000
G19: XR by Overall Mol Bal | H19: =+(SUM(D7:D17)-E7*F7)/G18 -> 0.046
G20: D = | H20: =+H18-H19 -> -0.000
A22: Antoine Constants | F22: Instructions:
B23: A | C23: B | D23: C | F23: 1) Use Solver to set BP/DP Criteria (Column N) to 1.000 and D to 0 by changing T (Column K) and something else.
A24: Benzene | B24: 6.89272 | C24: 1203.531 | D24: 219.888 | F24: 2) Set R (B3), xD (F7), P (B4) and/or D (E7) according to specifications and let one of them be a variable (that "something else").
A25: Toluene | B25: 6.95805 | C25: 1346.773 | D25: 219.693 | F25: 3) F and Z can be applied to any stage. Saturated liquid feed only.
F26: 4) If you change the pressure, don't forget to change the pressure on the VLE diagrams.
A28: Operating Lines | E28: McCabe-Thiele | H28: Profiles
A29: x | B29: y (TOL) | C29: y (BOL) | E29: x | F29: y | H29: Stage | I29: L | J29: V | K29: T | L29: x | M29: y
A30: 0 | B30: =+($B$3/($B$3+1))*A30+(1/(1+$B$3))*$F$7 -> 0.3181 | C30: =+($G$17/$I$18)*A30-($G$18/$I$18)*$H$18 -> -0.0152 | E30: =+H7 -> 0.9543 | F30: =+J8 -> 0.9543 | H30: 1 | I30: =+G7 -> 100 | J30: 0 | K30: =+K7 -> 81.0 | L30: =+H7 -> 0.954 | M30: =+J7 -> 0.000
A31: 0.1 | B31: =+($B$3/($B$3+1))*A31+(1/(1+$B$3))*$F$7 -> 0.3848 | C31: =+($G$17/$I$18)*A31-($G$18/$I$18)*$H$18 -> 0.1181 | E31: =+H8 -> 0.8900 | F31: =+J8 -> 0.9543 | H31: 2 | I31: 100 | J31: =+I8 -> 150 | K31: 82.4 | L31: =+H8 -> 0.890 | M31: =+J8 -> 0.954
A32: 0.2 | B32: 0.4514 | C32: 0.2514 | E32: =+H8 -> 0.8900 | F32: =+J9 -> 0.9114 | H32: 3 | I32: 100 | J32: 150 | K32: 84.4 | L32: 0.801 | M32: 0.911
A33: 0.3 | B33: 0.5181 | C33: 0.3848 | E33: =+H9 -> 0.8008 | F33: =+J9 -> 0.9114 | H33: 4 | I33: 100 | J33: 150 | K33: 86.9 | L33: 0.694 | M33: 0.852
A34: 0.4 | B34: 0.5848 | C34: 0.5181 | E34: =+H9 -> 0.8008 | F34: =+J10 -> 0.8520 | H34: 5 | I34: 100 | J34: 150 | K34: 89.7 | L34: 0.586 | M34: 0.781
A35: 0.5 | B35: 0.6514 | C35: 0.6514 | E35: =+H10 -> 0.6940 | F35: =+J10 -> 0.8520 | H35: 6 | I35: 200 | J35: 150 | K35: 92.3 | L35: 0.495 | M35: 0.709
A36: 0.6 | B36: 0.7181 | C36: 0.7848 | E36: =+H10 -> 0.6940 | F36: =+J11 -> 0.7808 | H36: 7 | I36: 200 | J36: 150 | K36: 94.4 | L36: 0.423 | M36: 0.644
A37: 0.7 | B37: 0.7848 | C37: 0.9181 | E37: =+H11 -> 0.5864 | F37: =+J11 -> 0.7808 | H37: 8 | I37: 200 | J37: 150 | K37: 97.4 | L37: 0.332 | M37: 0.548
A38: 0.8 | B38: 0.8514 | C38: 1.0514 | E38: =+H11 -> 0.5864 | F38: =+J12 -> 0.7090 | H38: 9 | I38: 200 | J38: 150 | K38: 100.8 | L38: 0.235 | M38: 0.427
A39: 0.9 | B39: 0.9181 | C39: 1.1848 | E39: =+H12 -> 0.4945 | F39: =+J12 -> 0.7090 | H39: 10 | I39: 200 | J39: 150 | K39: 104.0 | L39: 0.151 | M39: 0.298
A40: 1 | B40: 0.9848 | C40: 1.3181 | E40: =+H12 -> 0.4945 | F40: =+J13 -> 0.6441 | H40: 11 | I40: 200 | J40: 150 | K40: 106.7 | L40: 0.088 | M40: 0.186
E41: =+H13 -> 0.4227 | F41: =+J13 -> 0.6441 | H41: 12 | I41: 50 | J41: 150 | K41: 108.5 | L41: 0.046 | M41: 0.102
A42: Feed Line | B42: x | C42: y | E42: =+H13 -> 0.4227 | F42: =+J14 -> 0.5484
B43: =+SUM(C8:C17) -> 0.5 | C43: 0 | E43: =+H14 -> 0.3316 | F43: =+J14 -> 0.5484
B44: =+SUM(C8:C17) -> 0.5 | C44: 1 | E44: =+H14 -> 0.3316 | F44: =+J15 -> 0.4269
E45: =+H15 -> 0.2353 | F45: =+J15 -> 0.4269
A46: 45o Line | B46: x | C46: y | E46: =+H15 -> 0.2353 | F46: =+J16 -> 0.2985
B47: 0 | C47: 0 | E47: =+H16 -> 0.1508 | F47: =+J16 -> 0.2985
B48: 1 | C48: 1 | E48: =+H16 -> 0.1508 | F48: =+J17 -> 0.1859
E49: =+H17 -> 0.0877 | F49: =+J17 -> 0.1859
E50: =+H17 -> 0.0877 | F50: =+J18 -> 0.1017
E51: =+H18 -> 0.0457 | F51: =+J18 -> 0.1017
E52: =+H18 -> 0.0457 | F52: =+H19 -> 0.0457
